Workbook

Sheet ORÇAMENTO
A1: <---- NUMERAR SERVIÇOS PARA CPU | C1: Ministério do Desenvolvimento Regional
C2: Companhia de Desenvolvimento dos Vales do São Francisco e do Parnaíba
C3: 1ª Superintendência Regional
B5: OBRA: | C5: PAVIMENTAÇÃO EM BLOQUETE SEXTAVADOS - RUA BOM JARDIM (BAIRRO SANTO ANTÔNIO) - SERRO/MG (ITEM 2)
B6: DATA: | C6: OUTUBRO/2023 | G6: BDI Serviços: | I6: ='BDI SERV'!D30/100 -> 0.2149
B7: PRAZO DE EXECUÇÃO: 150 DIAS
B8: ITEM | C8: DISCRIMINAÇÃO | D8: REFER. | E8: UNID. | F8: QUANT. | G8: P. UNITÁRIO | H8: P.UNIT.C/ BDI | I8: P. TOTAL
A9: A | B9: 1 | C9: SERVIÇOS PRELIMINARES | I9: =SUM(I10:I14) -> 153884.53
A10: 1 | B10: 1.1 | C10: MOBILIZAÇÃO E DESMOBILIZAÇÃO | D10: CPU.1 | E10: GL | F10: 1 | G10: =VLOOKUP(A10,CPU!$A$1:$N$4885,9) -> 14753.36 | H10: =VLOOKUP(A10,CPU!$A$1:$N$4885,10) -> 17923.85706 | I10: =ROUND(F10*H10,2) -> 17923.86
A11: 2 | B11: 1.2 | C11: ADMINISTRAÇÃO LOCAL | D11: CPU.2 | E11: GL | F11: 1 | G11: =VLOOKUP(A11,CPU!$A$1:$N$4885,9) -> 96005 | H11: =VLOOKUP(A11,CPU!$A$1:$N$4885,10) -> 116636.4745 | I11: =ROUND(F11*H11,2) -> 116636.47
A12: 3 | B12: 1.3 | C12: CANTEIRO DE OBRAS | D12: CPU.3 | E12: GL | F12: 1 | G12: =VLOOKUP(A12,CPU!$A$1:$N$4885,9) -> 11337.75 | H12: =VLOOKUP(A12,CPU!$A$1:$N$4885,10) -> 13774.23248 | I12: =ROUND(F12*H12,2) -> 13774.23
A13: 4 | B13: 1.4 | C13: PLACA DE OBRA EM CHAPA DE AÇO GALVANIZADO | D13: 103689 | E13: M2 | F13: 4.5 | G13: =VLOOKUP(A13,CPU!$A$1:$N$4885,9) -> 340.5 | H13: =VLOOKUP(A13,CPU!$A$1:$N$4885,10) -> 413.67345 | I13: =ROUND(F13*H13,2) -> 1861.53
A14: 5 | B14: 1.5 | C14: SERVIÇOS TOPOGRÁFICOS PARA PAVIMENTAÇÃO, INCLUSIVE NOTA DE SERVIÇO, ACOMPANHAMENTO E GREIDE | D14: 99064 | E14: M2 | F14: 9200 | G14: =VLOOKUP(A14,CPU!$A$1:$N$4885,9) -> 0.33 | H14: =VLOOKUP(A14,CPU!$A$1:$N$4885,10) -> 0.400917 | I14: =ROUND(F14*H14,2) -> 3688.44
A15: B | B15: 2 | C15: PAVIMENTAÇÃO | I15: =SUM(I16:I20) -> 618619.8
A16: 6 | B16: 2.1 | C16: ESCAVAÇÃO HORIZONTAL EM SOLO DE 1A CATEGORIA COM TRATOR DE ESTEIRAS | D16: 101116 | E16: M3 | F16: 7350 | G16: =VLOOKUP(A16,CPU!$A$1:$N$4885,9) -> 2.2 | H16: =VLOOKUP(A16,CPU!$A$1:$N$4885,10) -> 2.67278 | I16: =ROUND(F16*H16,2) -> 19644.93
A17: 7 | B17: 2.2 | C17: CARGA, MANOBRA E DESCARGA DE SOLOS E MATERIAIS GRANULARES EM CAMINHÃO BASCULANTE - CARGA COM PÁ CARREGADEIRA E DESCARGA LIVRE | D17: 100976 | E17: M3 | F17: 7350 | G17: =VLOOKUP(A17,CPU!$A$1:$N$4885,9) -> 8.71 | H17: =VLOOKUP(A17,CPU!$A$1:$N$4885,10) -> 10.581779 | I17: =ROUND(F17*H17,2) -> 77776.08
A18: 8 | B18: 2.3 | C18: REGULARIZAÇÃO E COMPACTAÇÃO DE SUBLEITO | D18: 100576 | E18: M2 | F18: 9200 | G18: =VLOOKUP(A18,CPU!$A$1:$N$4885,9) -> 2.57 | H18: =VLOOKUP(A18,CPU!$A$1:$N$4885,10) -> 3.122293 | I18: =ROUND(F18*H18,2) -> 28725.1
A19: 8.5 | B19: 2.4 | C19: EXECUÇÃO E COMPACTAÇÃO DE BASE E OU SUB BASE PARA PAVIMENTAÇÃO DE SOLO DE COMPORTAMENTO LATERÍTICO - EXCLUSIVE SOLO, ESCAVAÇÃO, CARGA E TRANSPORTE | D19: 96388 | E19: M3 | F19: 1850 | G19: =VLOOKUP(A19,CPU!$A$1:$N$4885,9) -> 12.47 | H19: =VLOOKUP(A19,CPU!$A$1:$N$4885,10) -> 15.149803 | I19: =ROUND(F19*H19,2) -> 28027.14
A20: 9 | B20: 2.5 | C20: EXECUÇÃO DE PAVIMENTO EM PISO INTERTRAVADO, COM BLOCO SEXTAVADO DE CONCRETO DE 25 X 25 CM, ESPESSURA 8 CM | D20: 92394 | E20: M2 | F20: 6200 | G20: =VLOOKUP(A20,CPU!$A$1:$N$4885,9) -> 61.66 | H20: =VLOOKUP(A20,CPU!$A$1:$N$4885,10) -> 74.910734 | I20: =ROUND(F20*H20,2) -> 464446.55
A21: C | B21: 3 | C21: TRANSPORTE DE MATERIAIS | I21: =SUM(I22:I23) -> 165785.26
A22: 10 | B22: 3.1 | C22: TRANSPORTE COM CAMINHÃO BASCULANTE, EM VIA URBANA PAVIMENTADA | D22: 95427 | E22: M3XKM | F22: 49999.9981 | G22: =VLOOKUP(A22,CPU!$A$1:$N$4885,9) -> 0.73 | H22: =VLOOKUP(A22,CPU!$A$1:$N$4885,10) -> 0.886877 | I22: =ROUND(F22*H22,2) -> 44343.85
A23: 11 | B23: 3.2 | C23: TRANSPORTE COM CAMINHÃO CARROCERIA, EM VIA URBANA PAVIMENTADA | D23: 100948 | E23: TXKM | F23: 119000.0037 | G23: =VLOOKUP(A23,CPU!$A$1:$N$4885,9) -> 0.84 | H23: =VLOOKUP(A23,CPU!$A$1:$N$4885,10) -> 1.020516 | I23: =ROUND(F23*H23,2) -> 121441.41
A24: D | B24: 4 | C24: DRENAGEM E OBRAS COMPLEMENTARES | I24: =SUM(I25:I46) -> 1033653.18
A25: 12 | B25: 4.1 | C25: EXECUÇÃO DE PASSEIO (CALÇADA) OU PISO DE CONCRETO COM CONCRETO MOLDADO IN LOCO, FEITO EM OBRA, ACABAMENTO CONVENCIONAL, NÃO ARMADO. | D25: 94990 | E25: M3 | F25: 110 | G25: =VLOOKUP(A25,CPU!$A$1:$N$4885,9) -> 773.45 | H25: =VLOOKUP(A25,CPU!$A$1:$N$4885,10) -> 939.664405 | I25: =ROUND(F25*H25,2) -> 103363.08
A26: 13 | B26: 4.2 | C26: GUIA (MEIO-FIO) E SARJETA CONJUGADOS DE CONCRETO, MOLDADA IN LOCO EM TRECHO RETO COM EXTRUSORA, 45 CM BASE (15 CM BASE DA GUIA + SARJETA (30 X 0,05))X 22 CM ALTURA | D26: 94267 | E26: M | F26: 2300 | G26: =VLOOKUP(A26,CPU!$A$1:$N$4885,9) -> 47.75 | H26: =VLOOKUP(A26,CPU!$A$1:$N$4885,10) -> 58.011475 | I26: =ROUND(F26*H26,2) -> 133426.39
A27: 14 | B27: 4.3 | C27: GUIA (MEIO-FIO) CONCRETO, MOLDADA IN LOCO EM TRECHO RETO COM EXTRUSORA, 13 CM BASE X 22 CM ALTURA - PARA TRAVAMENTO | D27: 94263 | E27: M | F27: 120 | G27: =VLOOKUP(A27,CPU!$A$1:$N$4885,9) -> 35.59 | H27: =VLOOKUP(A27,CPU!$A$1:$N$4885,10) -> 43.238291 | I27: =ROUND(F27*H27,2) -> 5188.59
A28: 15 | B28: 4.4 | C28: LOCAÇÃO DE REDE DE ÁGUA OU ESGOTO | D28: 99063 | E28: M | F28: 720 | G28: =VLOOKUP(A28,CPU!$A$1:$N$4885,9) -> 5.92 | H28: =VLOOKUP(A28,CPU!$A$1:$N$4885,10) -> 7.192208 | I28: =ROUND(F28*H28,2) -> 5178.39
A29: 16 | B29: 4.5 | C29: ESCAVAÇÃO MECANIZADA DE VALA COM PROFUNDIDADE ATÉ 1,5 M, EM SOLO DE 1A CATEGORIA | D29: 90105 | E29: M3 | F29: 1300 | G29: =VLOOKUP(A29,CPU!$A$1:$N$4885,9) -> 9.34 | H29: =VLOOKUP(A29,CPU!$A$1:$N$4885,10) -> 11.347166 | I29: 14751.32
A30: 17 | B30: 4.6 | C30: PREPARO DE FUNDO DE VALA COM LARGURA MENOR QUE 1,5 M (ACERTO DO SOLO NATURAL), INCLUSIVE LASTRO DE CONCRETO MAGRO PARA BERÇO | D30: 101616+ 95240 | E30: M2 | F30: 900 | G30: =VLOOKUP(A30,CPU!$A$1:$N$4885,9) -> 59.33 | H30: =VLOOKUP(A30,CPU!$A$1:$N$4885,10) -> 72.080017 | I30: 64872.02
A31: 18 | B31: 4.7 | C31: ESCORAMENTO DE VALA, TIPO PONTALETEAMENTO | D31: 101570 | E31: M2 | F31: 2200 | G31: =VLOOKUP(A31,CPU!$A$1:$N$4885,9) -> 26.27 | H31: =VLOOKUP(A31,CPU!$A$1:$N$4885,10) -> 31.915423 | I31: 70213.93
A32: 19 | B32: 4.8 | C32: TUBO DE CONCRETO PARA REDES COLETORAS DE ÁGUAS PLUVIAIS, DIÂMETRO DE 400 MM, JUNTA RÍGIDA - FORNECIMENTO E ASSENTAMENTO | D32: 92210 | E32: M | F32: 160 | G32: =VLOOKUP(A32,CPU!$A$1:$N$4885,9) -> 186.67 | H32: =VLOOKUP(A32,CPU!$A$1:$N$4885,10) -> 226.785383 | I32: 36285.66
A33: 20 | B33: 4.9 | C33: TUBO DE CONCRETO PARA REDES COLETORAS DE ÁGUAS PLUVIAIS, DIÂMETRO DE 600 MM, JUNTA RÍGIDA - FORNECIMENTO E ASSENTAMENTO | D33: 92212 | E33: M | F33: 450 | G33: =VLOOKUP(A33,CPU!$A$1:$N$4885,9) -> 337.51 | H33: =VLOOKUP(A33,CPU!$A$1:$N$4885,10) -> 410.040899 | I33: =ROUND(F33*H33,2) -> 184518.4
A34: 21 | B34: 4.10 | C34: TUBO DE CONCRETO PARA REDES COLETORAS DE ÁGUAS PLUVIAIS, DIÂMETRO DE 800 MM, JUNTA RÍGIDA - FORNECIMENTO E ASSENTAMENTO | D34: 92214 | E34: M | F34: 110 | G34: =VLOOKUP(A34,CPU!$A$1:$N$4885,9) -> 348.86 | H34: =VLOOKUP(A34,CPU!$A$1:$N$4885,10) -> 423.830014 | I34: 46621.3
A35: 22 | B35: 4.11 | C35: CAIXA PARA BOCA DE LOBO COMBINADA COM GRELHA RETANGULAR, EM ALVENARIA COM BLOCOS DE CONCRETO, DIMENSÕES INTERNAS: 1,3X1X1,2 M. | D35: 97961 | E35: UNID. | F35: 30 | G35: =VLOOKUP(A35,CPU!$A$1:$N$4885,9) -> 2438.16 | H35: =VLOOKUP(A35,CPU!$A$1:$N$4885,10) -> 2962.120584 | I35: =ROUND(F35*H35,2) -> 88863.62
A36: 23 | B36: 4.12 | C36: CAIXA PARA BOCA DE LOBO DUPLA COMBINADA COM GRELHA RETANGULAR, EM ALVENARIA COM BLOCOS DE CONCRETO, DIMENSÕES INTERNAS: 1,3X2,2X1,2 M | D36: 97973 | E36: UNID. | F36: 2 | G36: =VLOOKUP(A36,CPU!$A$1:$N$4885,9) -> 4583.45 | H36: =VLOOKUP(A36,CPU!$A$1:$N$4885,10) -> 5568.433405 | I36: =ROUND(F36*H36,2) -> 11136.87
A37: 24 | B37: 4.13 | C37: POÇO DE VISITA RETANGULAR PARA DRENAGEM, EM ALVENARIA COM BLOCOS DE CONCRETO, DIMENSÕES INTERNAS = 1X1 M, PROFUNDIDADE = 1,40 M, INCLUSIVE TAMPÃO EM FERRO FUNDIDO D = 600MM | D37: 99252 | E37: UNID. | F37: 16 | G37: =VLOOKUP(A37,CPU!$A$1:$N$4885,9) -> 2811.21 | H37: =VLOOKUP(A37,CPU!$A$1:$N$4885,10) -> 3415.339029 | I37: =ROUND(F37*H37,2) -> 54645.42
A38: 25 | B38: 4.14 | C38: BACIA DE DISSIPAÇÃO, TIPO BACIA EM PEDRA DE MÃO FIXADA COM CONCRETO (DEB 01, 02), COM PREPARO MANUAL, FCK = 20 MPA, LANÇADO MANUALMENTE, INCLUINDO MATERIAIS E FÔRMAS | D38: 103930 | E38: M3 | F38: 8 | G38: =VLOOKUP(A38,CPU!$A$1:$N$4885,9) -> 781.01 | H38: =VLOOKUP(A38,CPU!$A$1:$N$4885,10) -> 948.849049 | I38: =ROUND(F38*H38,2) -> 7590.79
A39: 26 | B39: 4.15 | C39: ESCADA HIDRÁULICA, LARGURA ATÉ 1M, TIPO DESCIDA DÁGUA DE CORTE OU ATERRO EM DEGRAUS (DCD 02, 04 E DAD 02), EM CONCRETO USINADO, FCK = 20 MPA, INCLUINDO ARMAÇÃO, MATERIAIS E FÔRMAS | D39: 103925 | E39: M3 | F39: 25 | G39: =VLOOKUP(A39,CPU!$A$1:$N$4885,9) -> 1523.07 | H39: =VLOOKUP(A39,CPU!$A$1:$N$4885,10) -> 1850.377743 | I39: 46259.44
A40: 27 | B40: 4.16 | C40: REATERRO MANUAL DE VALAS COM COMPACTAÇÃO MECANIZADA | D40: 93382 | E40: M3 | F40: 1300 | G40: =VLOOKUP(A40,CPU!$A$1:$N$4885,9) -> 25.17 | H40: =VLOOKUP(A40,CPU!$A$1:$N$4885,10) -> 30.579033 | I40: =ROUND(F40*H40,2) -> 39752.74
A41: 28 | B41: 4.17 | C41: BOCA PARA BUEIRO SIMPLES TUBULAR D = 80 CM EM CONCRETO, ALAS COM ESCONSIDADE DE 0°, INCLUINDO FÔRMAS E MATERIAIS | D41: 102739 | E41: UNID. | F41: 5 | G41: =VLOOKUP(A41,CPU!$A$1:$N$4885,9) -> 3650.96 | H41: =VLOOKUP(A41,CPU!$A$1:$N$4885,10) -> 4435.551304 | I41: =ROUND(F41*H41,2) -> 22177.76
A42: 29 | B42: 4.18 | C42: FAIXA ELEVADA PARA TRAVESSIA DE PEDESTRES - CONF. PROJETO, INCLUSIVE PINTURA DE SINALIZAÇÃO | D42: CPU.4 | E42: UNID. | F42: 1 | G42: =VLOOKUP(A42,CPU!$A$1:$N$4885,9) -> 6466.73 | H42: =VLOOKUP(A42,CPU!$A$1:$N$4885,10) -> 7856.430277 | I42: =ROUND(F42*H42,2) -> 7856.43
A43: 30 | B43: 4.19 | C43: ESTACA BROCA DE CONCRETO, DIÂMETRO DE 30CM, ESCAVAÇÃO MANUAL COM TRADO CONCHA, COM ARMADURA DE ARRANQUE | D43: 101175 | E43: M | F43: 120 | G43: =VLOOKUP(A43,CPU!$A$1:$N$4885,9) -> 113.27 | H43: =VLOOKUP(A43,CPU!$A$1:$N$4885,10) -> 137.611723 | I43: =ROUND(F43*H43,2) -> 16513.41
A44: 31 | B44: 4.20 | C44: CONTENÇÃO EM CORTINA COM ESTACAS ESPAÇADAS COM 30 CM DE DIÂMETRO E PROFUNDIDADE MENOR OU IGUAL A 10 M. | D44: 98615 | E44: M2 | F44: 360 | G44: =VLOOKUP(A44,CPU!$A$1:$N$4885,9) -> 158.83 | H44: =VLOOKUP(A44,CPU!$A$1:$N$4885,10) -> 192.962567 | I44: 69466.52
A45: 32 | B45: 4.3 | C45: FORNECIMENTO E INSTALAÇÃO DE PLACA DE SINALIZAÇÃO VIÁRIA - REGULAMENTAÇÃO 0,60MX0,60M, SUPORTE INCLUSO | D45: CPU.5 | E45: UNID. | F45: 6 | G45: =VLOOKUP(A45,CPU!$A$1:$N$4885,9) -> 386.98 | H45: =VLOOKUP(A45,CPU!$A$1:$N$4885,10) -> 470.142002 | I45: =ROUND(F45*H45,2) -> 2820.85
A46: 33 | B46: 4.4 | C46: FORNECIMENTO E INSTALAÇÃO DE PLACA DE IDENTIFICAÇÃO DE LOGRADOURO, SUPORTE INCLUSO - CONFORME PROJETO | D46: CPU.6 | E46: UNID. | F46: 5 | G46: =VLOOKUP(A46,CPU!$A$1:$N$4885,9) -> 353.98 | H46: =VLOOKUP(A46,CPU!$A$1:$N$4885,10) -> 430.050302 | I46: =ROUND(F46*H46,2) -> 2150.25
B47: TOTAL GERAL DA OBRA COM BDI | I47: =SUM(I9,I15,I21,I24) -> 1971942.77

Sheet CPU
A1: 1 | B1: CODEVASF | E1: COMPOSIÇÃO DE PREÇO UNITÁRIO | I1: =H12 -> 14753.36 | J1: =H14 -> 17923.85706 | K1: BDI CALCULADO: | M1: =ORÇAMENTO!I6 -> 0.2149
B2: OBRA: | C2: =ORÇAMENTO!C5 -> PAVIMENTAÇÃO EM BLOQUETE SEXTAVADOS - RUA BOM JARDIM (BAIRRO SANTO ANTÔNIO) - SERRO/MG (ITEM 2) | G2: DATA: | H2: =ORÇAMENTO!C6 -> OUTUBRO/2023
B3: SERVIÇO: | C3: =VLOOKUP(A1,ORÇAMENTO!A10:I26,3) -> MOBILIZAÇÃO E DESMOBILIZAÇÃO | E3: Referência: | F3: =VLOOKUP(A1,ORÇAMENTO!A10:I26,4) -> CPU.1 | G3: UNIDADE: | H3: =VLOOKUP(A1,ORÇAMENTO!A10:I26,5) -> GL
B5: TIPO ITEM | C5: CODIGO ITEM | D5: DESCRIÇÃO ITEM | E5: UNIDADE ITEM | F5: COEFICIENTE | G5: PRECO UNITARIO | H5: CUSTO TOTAL
B6: COMPOSICAO | C6: 5824 | D6: CAMINHÃO TOCO, PBT 16.000 KG, CARGA ÚTIL MÁX. 10.685 KG, DIST. ENTRE EIXOS 4,8 M, POTÊNCIA 189 CV, INCLUSIVE CARROCERIA FIXA ABERTA DE MADEIRA P/ TRANSPORTE GERAL DE CARGA SECA | E6: CHP | F6: 16 | G6: 202.74 | H6: =ROUNDDOWN(F6*G6,2) -> 3243.84 | M6: .
B7: COMPOSICAO | C7: 5826 | D7: CAMINHÃO TOCO, PBT 16.000 KG, CARGA ÚTIL MÁX. 10.685 KG, DIST. ENTRE EIXOS 4,8 M, POTÊNCIA 189 CV, INCLUSIVE CARROCERIA FIXA ABERTA DE MADEIRA P/ TRANSPORTE GERAL DE CARGA SECA | E7: CHI | F7: 16 | G7: 60.95 | H7: =ROUNDDOWN(F7*G7,2) -> 975.2
B8: COMPOSICAO | C8: 5914640 | D8: TRANSPORTE COM CAVALO MECÂNICO COM SEMIRREBOQUE COM CAPACIDADE DE 30 T - RODOVIA PAVIMENTADA | E8: T.KM | F8: 4354 | G8: 0.58 | H8: =ROUNDDOWN(F8*G8,2) -> 2525.32
B9: COMPOSIÇÃO | C9: 88316 | D9: SERVENTE COM ENCARGOS COMPLEMENTARES | E9: H | F9: 32 | G9: 19.76 | H9: =ROUNDDOWN(F9*G9,2) -> 632.32
H10: =ROUNDDOWN(F10*G10,2) -> 0
B11: PRODUÇÃO DA EQUIPE | E11: 0.5 | F11: CUSTO | H11: =SUM(H6:H10) -> 7376.68
B12: TOTAL | H12: =H11/E11 -> 14753.36 | I12: OK
B13: BDI % | H13: =1+$M$1 -> 1.2149
B14: TOTAL DO SERVIÇO - R$ | H14: =H12*H13 -> 17923.85706
A16: =A1+1 -> 2 | B16: CODEVASF | E16: COMPOSIÇÃO DE PREÇO UNITÁRIO | I16: =H31 -> 96005 | J16: =H33 -> 116636.4745
B17: OBRA: | C17: =$C$2 -> PAVIMENTAÇÃO EM BLOQUETE SEXTAVADOS - RUA BOM JARDIM (BAIRRO SANTO ANTÔNIO) - SERRO/MG (ITEM 2) | G17: DATA: | H17: =$H$2 -> OUTUBRO/2023
B18: SERVIÇO: | C18: =VLOOKUP(A16,ORÇAMENTO!$A$10:$I$26,3) -> ADMINISTRAÇÃO LOCAL | E18: SINAPI | F18: CPU | G18: UNIDADE: | H18: =VLOOKUP(A16,ORÇAMENTO!$A$10:$I$26,5) -> GL
B20: TIPO ITEM | C20: CODIGO ITEM | D20: DESCRIÇÃO ITEM | E20: UNIDADE ITEM | F20: COEFICIENTE | G20: PRECO UNITARIO | H20: CUSTO TOTAL
B21: INSUMO | C21: 14250 | D21: ENERGIA ELÉTRICA | E21: kwh | F21: 50 | G21: 0.94 | H21: =ROUNDDOWN(F21*G21,2) -> 47
B22: INSUMO | C22: 44480 | D22: TARIFA FORNECIMENTO DE ÁGUA/ESGOTO | E22: M3 | F22: 5 | G22: 17.78 | H22: =ROUNDDOWN(F22*G22,2) -> 88.9
B23: COTAÇÃO | C23: MERC. | D23: TELEFONE (PLANO CONTROLE) | E23: UNID | F23: 2 | G23: 59.9 | H23: 119.8
B24: COMPOSICAO | C24: 90777 | D24: Engenheiro Civil Júnior com encargos complementares | E24: H | F24: 55 | G24: 114.12 | H24: 6276.6
B25: COMPOSICAO | C25: 90776 | D25: Encarregado Geral com encargos complementares | E25: H | F25: 110 | G25: 57.73 | H25: =ROUNDDOWN(F25*G25,2) -> 6350.3
B26: COMPOSICAO | C26: 88321 | D26: Tecnico de Laboratório com encargos complementares | E26: H | F26: 55 | G26: 45.45 | H26: =ROUNDDOWN(F26*G26,2) -> 2499.75
B27: COMPOSICAO | C27: 100309 | D27: Tecnico em Segurança do Trabalho com encargos complementares | E27: H | F27: 55 | G27: 45.71 | H27: =ROUNDDOWN(F27*G27,2) -> 2514.05
B28: COMPOSICAO | C28: 90772 | D28: Auxiliar de escritório com encargos complementares | E28: H | F28: 55 | G28: 23.72 | H28: 1304.6
H29: 0
B30: PRODUÇÃO DA EQUIPE | E30: 0.2 | F30: CUSTO | H30: =SUM(H21:H29) -> 19201
B31: TOTAL | H31: =H30/E30 -> 96005 | I31: OK
B32: BDI % | H32: =1+$M$1 -> 1.2149
B33: TOTAL DO SERVIÇO - R$ | H33: =H31*H32 -> 116636.4745
A35: =A16+1 -> 3 | B35: CODEVASF | E35: COMPOSIÇÃO DE PREÇO UNITÁRIO | I35: =H45 -> 11337.75 | J35: =H47 -> 13774.23248
B36: OBRA: | C36: =$C$2 -> PAVIMENTAÇÃO EM BLOQUETE SEXTAVADOS - RUA BOM JARDIM (BAIRRO SANTO ANTÔNIO) - SERRO/MG (ITEM 2) | G36: DATA: | H36: =$H$2 -> OUTUBRO/2023
B37: SERVIÇO: | C37: =VLOOKUP(A35,ORÇAMENTO!$A$10:$I$26,3) -> CANTEIRO DE OBRAS | E37: SINAPI | F37: =VLOOKUP(A35,ORÇAMENTO!$A$10:$I$26,4) -> CPU.3 | G37: UNIDADE: | H37: =VLOOKUP(A35,ORÇAMENTO!$A$10:$I$26,5) -> GL
B39: TIPO ITEM | C39: CODIGO ITEM | D39: DESCRIÇÃO ITEM | E39: UNIDADE ITEM | F39: COEFICIENTE | G39: PRECO UNITARIO | H39: CUSTO TOTAL
B40: COTAÇÃO | C40: 10775 | D40: ALUGUEL DE IMÓVEL OU CONTEINER QUE ATENDA AOS REQUISITOS MÍNIMOS PARA INSTALAÇÃO DO CANTEIRO DE OBRAS | E40: MÊS | F40: 5 | G40: 975 | H40: =ROUNDDOWN(F40*G40,2) -> 4875
B41: INSUMO | C41: 10779 | D41: LOCACAO DE CONTAINER 2,30 X 4,30 M, ALT. 2,50 M, P/ SANITARIO, C/ 5 BACIAS, 1 LAVATORIO E 4 MICTORIOS | E41: MÊS | F41: 5 | G41: 1218.75 | H41: =ROUNDDOWN(F41*G41,2) -> 6093.75
B42: INSUMO | C42: 37525 | D42: TELA PLASTICA TECIDA LISTRADA BRANCA E LARANJA, TIPO GUARDA CORPO, EM POLIETILENO MONOFILADO, ROLO 1,20 X 50 M (L X C) | E42: M | F42: 100 | G42: 3.69 | H42: 369
H43: 0
B44: PRODUÇÃO DA EQUIPE | E44: 1 | F44: CUSTO | H44: =SUM(H40:H43) -> 11337.75
B45: TOTAL | H45: =H44/E44 -> 11337.75 | I45: OK
B46: BDI % | H46: =1+$M$1 -> 1.2149
B47: TOTAL DO SERVIÇO - R$ | H47: =H45*H46 -> 13774.23248
A49: =A35+1 -> 4 | B49: CODEVASF | E49: COMPOSIÇÃO DE PREÇO UNITÁRIO | I49: =H63 -> 340.5 | J49: =H65 -> 413.67345
B50: OBRA: | C50: =$C$2 -> PAVIMENTAÇÃO EM BLOQUETE SEXTAVADOS - RUA BOM JARDIM (BAIRRO SANTO ANTÔNIO) - SERRO/MG (ITEM 2) | G50: DATA: | H50: =$H$2 -> OUTUBRO/2023
B51: SERVIÇO: | C51: =VLOOKUP(A49,ORÇAMENTO!$A$10:$I$26,3) -> PLACA DE OBRA EM CHAPA DE AÇO GALVANIZADO | E51: SINAPI | F51: =VLOOKUP(A49,ORÇAMENTO!$A$10:$I$26,4) -> 103689 | G51: UNIDADE: | H51: =VLOOKUP(A49,ORÇAMENTO!$A$10:$I$26,5) -> M2
B53: TIPO ITEM | C53: CODIGO ITEM | D53: DESCRIÇÃO ITEM | E53: UNIDADE ITEM | F53: COEFICIENTE | G53: PRECO UNITARIO | H53: CUSTO TOTAL
B54: INSUMO | C54: 4509 | D54: SARRAFO *2,5 X 10* CM EM PINUS, MISTA OU EQUIVALENTE DA REGIAO - BRUTA | E54: M | F54: 3,2083000 | G54: 4,41 | H54: =ROUNDDOWN(F54*G54,2) -> 14.14
B55: INSUMO | C55: 4813 | D55: PLACA DE OBRA (PARA CONSTRUCAO CIVIL) EM CHAPA GALVANIZADA *N. 22*, ADESIVADA, DE *2,4 X 1,2* M (SEM POSTES PARA FIXACAO) | E55: M2 | F55: 1,0000000 | G55: 250,00 | H55: =ROUNDDOWN(F55*G55,2) -> 250
B56: INSUMO | C56: 5065 | D56: PREGO DE ACO POLIDO COM CABECA 10 X 10 | E56: KG | F56: 0,0113000 | G56: 36,57 | H56: 0.41
B57: INSUMO | C57: 5069 | D57: PREGO DE ACO POLIDO COM CABECA 17 X 27 | E57: KG | F57: 0,0132000 | G57: 19,59 | H57: 0.25
B58: COMPOSICAO | C58: 88262 | D58: CARPINTEIRO DE FORMAS COM ENCARGOS COMPLEMENTARES | E58: H | F58: 0,3729000 | G58: 27,05 | H58: 10.08
B59: COMPOSICAO | C59: 88316 | D59: SERVENTE COM ENCARGOS COMPLEMENTARES | E59: H | F59: 1,1186000 | G59: 19,76 | H59: 22.1
B60: COMPOSICAO | C60: 4115 | D60: MADEIRA ROLICA TRATADA, D = 12 A 15 CM, H = 3,00 M, EM EUCALIPTO OU EQUIVALENTE | E60: M | F60: 2 | G60: 21.76 | H60: =ROUNDDOWN(F60*G60,2) -> 43.52
H61: 0
B62: PRODUÇÃO DA EQUIPE | E62: 1 | F62: CUSTO | H62: =SUM(H54:H61) -> 340.5
B63: TOTAL | H63: =H62/E62 -> 340.5 | I63: OK
B64: BDI % | H64: =1+$M$1 -> 1.2149
B65: TOTAL DO SERVIÇO - R$ | H65: =H63*H64 -> 413.67345
A67: =A49+1 -> 5 | B67: CODEVASF | E67: COMPOSIÇÃO DE PREÇO UNITÁRIO | I67: =H79 -> 0.33 | J67: =H81 -> 0.400917
B68: OBRA: | C68: =$C$2 -> PAVIMENTAÇÃO EM BLOQUETE SEXTAVADOS - RUA BOM JARDIM (BAIRRO SANTO ANTÔNIO) - SERRO/MG (ITEM 2) | G68: DATA: | H68: =$H$2 -> OUTUBRO/2023
B69: SERVIÇO: | C69: =VLOOKUP(A67,ORÇAMENTO!$A$10:$I$26,3) -> SERVIÇOS TOPOGRÁFICOS PARA PAVIMENTAÇÃO, INCLUSIVE NOTA DE SERVIÇO, ACOMPANHAMENTO E GREIDE | E69: SINAPI | F69: =VLOOKUP(A67,ORÇAMENTO!$A$10:$I$26,4) -> 99064 | G69: UNIDADE: | H69: =VLOOKUP(A67,ORÇAMENTO!$A$10:$I$26,5) -> M2
B71: TIPO ITEM | C71: CODIGO ITEM | D71: DESCRIÇÃO ITEM | E71: UNIDADE ITEM | F71: COEFICIENTE | G71: PRECO UNITARIO | H71: CUSTO TOTAL
B72: COMPOSICAO | C72: 88253 | D72: AUXILIAR DE TOPÓGRAFO COM ENCARGOS COMPLEMENTARES | E72: H | F72: 0.0025 | G72: 21.57 | H72: =ROUNDDOWN(F72*G72,2) -> 0.05
B73: COMPOSICAO | C73: 88288 | D73: NIVELADOR COM ENCARGOS COMPLEMENTARES | E73: H | F73: 0.0025 | G73: 26.99 | H73: =ROUNDDOWN(F73*G73,2) -> 0.06
B74: COMPOSICAO | C74: 88316 | D74: SERVENTE COM ENCARGOS COMPLEMENTARES | E74: H | F74: 0.0075 | G74: 19.76 | H74: 0.14
B75: COMPOSICAO | C75: 88597 | D75: DESENHISTA DETALHISTA COM ENCARGOS COMPLEMENTARES | E75: H | F75: 0.002 | G75: 29.72 | H75: 0.05
B76: COMPOSICAO | C76: 92145 | D76: CAMINHONETE CABINE SIMPLES COM MOTOR 1.6 FLEX, CÂMBIO MANUAL, POTÊNCIA 101/104 CV, 2 PORTAS | E76: CHP | F76: 0.0005 | G76: 75.75 | H76: 0.03
H77: 0
B78: PRODUÇÃO DA EQUIPE | E78: 1 | F78: CUSTO | H78: =SUM(H72:H77) -> 0.33
B79: TOTAL | H79: =H78/E78 -> 0.33 | I79: OK
B80: BDI % | H80: =1+$M$1 -> 1.2149
B81: TOTAL DO SERVIÇO - R$ | H81: =H79*H80 -> 0.400917
A83: =A67+1 -> 6 | B83: CODEVASF | E83: COMPOSIÇÃO DE PREÇO UNITÁRIO | I83: =H92 -> 2.2 | J83: =H94 -> 2.67278
B84: OBRA: | C84: =$C$2 -> PAVIMENTAÇÃO EM BLOQUETE SEXTAVADOS - RUA BOM JARDIM (BAIRRO SANTO ANTÔNIO) - SERRO/MG (ITEM 2) | G84: DATA: | H84: =$H$2 -> OUTUBRO/2023
B85: SERVIÇO: | C85: =VLOOKUP(A83,ORÇAMENTO!$A$10:$I$26,3) -> ESCAVAÇÃO HORIZONTAL EM SOLO DE 1A CATEGORIA COM TRATOR DE ESTEIRAS | E85: SINAPI | F85: =VLOOKUP(A83,ORÇAMENTO!$A$10:$I$26,4) -> 101116 | G85: UNIDADE: | H85: =VLOOKUP(A83,ORÇAMENTO!$A$10:$I$26,5) -> M3
B87: TIPO ITEM | C87: CODIGO ITEM | D87: DESCRIÇÃO ITEM | E87: UNIDADE ITEM | F87: COEFICIENTE | G87: PRECO UNITARIO | H87: CUSTO TOTAL
B88: COMPOSICAO | C88: 5847 | D88: TRATOR DE ESTEIRAS, POTÊNCIA 170 HP, PESO OPERACIONAL 19 T, CAÇAMBA 5,2 M3 | E88: CHP | F88: 0,0048000 | G88: 253,93 | H88: =ROUNDDOWN(F88*G88,2) -> 1.21
B89: COMPOSICAO | C89: 5849 | D89: TRATOR DE ESTEIRAS, POTÊNCIA 170 HP, PESO OPERACIONAL 19 T, CAÇAMBA 5,2 M3 | E89: CHI | F89: 0,0082000 | G89: 90,40 | H89: =ROUNDDOWN(F89*G89,2) -> 0.74
B90: COMPOSICAO | C90: 88316 | D90: SERVENTE COM ENCARGOS COMPLEMENTARES | E90: H | F90: 0,0131000 | G90: 19,76 | H90: =ROUNDDOWN(F90*G90,2) -> 0.25
B91: PRODUÇÃO DA EQUIPE | E91: 1 | F91: CUSTO | H91: =SUM(H88:H90) -> 2.2
B92: TOTAL | H92: =H91/E91 -> 2.2 | I92: OK
B93: BDI % | H93: =1+$M$1 -> 1.2149
B94: TOTAL DO SERVIÇO - R$ | H94: =H92*H93 -> 2.67278
A96: 7 | B96: CODEVASF | E96: COMPOSIÇÃO DE PREÇO UNITÁRIO | I96: =H106 -> 8.71 | J96: =H108 -> 10.581779
B97: OBRA: | C97: =$C$2 -> PAVIMENTAÇÃO EM BLOQUETE SEXTAVADOS - RUA BOM JARDIM (BAIRRO SANTO ANTÔNIO) - SERRO/MG (ITEM 2) | G97: DATA: | H97: =$H$2 -> OUTUBRO/2023
B98: SERVIÇO: | C98: =VLOOKUP(A96,ORÇAMENTO!$A$10:$I$26,3) -> CARGA, MANOBRA E DESCARGA DE SOLOS E MATERIAIS GRANULARES EM CAMINHÃO BASCULANTE - CARGA COM PÁ CARREGADEIRA E DESCARGA LIVRE | E98: SINAPI | F98: =VLOOKUP(A96,ORÇAMENTO!$A$10:$I$26,4) -> 100976 | G98: UNIDADE: | H98: =VLOOKUP(A96,ORÇAMENTO!$A$10:$I$26,5) -> M3
B100: TIPO ITEM | C100: CODIGO ITEM | D100: DESCRIÇÃO ITEM | E100: UNIDADE ITEM | F100: COEFICIENTE | G100: PRECO UNITARIO | H100: CUSTO TOTAL
B101: COMPOSICAO | C101: 5940 | D101: PÁ CARREGADEIRA SOBRE RODAS, POTÊNCIA LÍQUIDA 128 HP, CAPACIDADE DA CAÇAMBA 1,7 A 2,8 M3, PESO OPERACIONAL 11632 KG | E101: CHP | F101: 0,0083000 | G101: 217,72 | H101: =ROUNDDOWN(F101*G101,2) -> 1.8
B102: COMPOSICAO | C102: 5942 | D102: PÁ CARREGADEIRA SOBRE RODAS, POTÊNCIA LÍQUIDA 128 HP, CAPACIDADE DA CAÇAMBA 1,7 A 2,8 M3, PESO OPERACIONAL 11632 KG | E102: CHI | F102: 0,0074000 | G102: 95,85 | H102: =ROUNDDOWN(F102*G102,2) -> 0.7
B103: COMPOSICAO | C103: 89883 | D103: CAMINHÃO BASCULANTE 18 M3, COM CAVALO MECÂNICO DE CAPACIDADE MÁXIMA DE TRAÇÃO COMBINADO DE 45000 KG, POTÊNCIA 330 CV, INCLUSIVE SEMIREBOQUE COM CAÇAMBA METÁLICA | E103: CHP | F103: 0,0153000 | G103: 348,45 | H103: =ROUNDDOWN(F103*G103,2) -> 5.33
B104: COMPOSICAO | C104: 89884 | D104: CAMINHÃO BASCULANTE 18 M3, COM CAVALO MECÂNICO DE CAPACIDADE MÁXIMA DE TRAÇÃO COMBINADO DE 45000 KG, POTÊNCIA 330 CV, INCLUSIVE SEMIREBOQUE COM CAÇAMBA METÁLICA | E104: CHI | F104: 0,0095000 | G104: 93,65 | H104: =ROUNDDOWN(F104*G104,2) -> 0.88
B105: PRODUÇÃO DA EQUIPE | E105: 1 | F105: CUSTO | H105: =SUM(H101:H104) -> 8.71
B106: TOTAL | H106: =H105/E105 -> 8.71 | I106: OK
B107: BDI % | H107: =1+$M$1 -> 1.2149
B108: TOTAL DO SERVIÇO - R$ | H108: =H106*H107 -> 10.581779
A110: 8 | B110: CODEVASF | E110: COMPOSIÇÃO DE PREÇO UNITÁRIO | I110: =H123 -> 2.57 | J110: =H125 -> 3.122293
B111: OBRA: | C111: =$C$2 -> PAVIMENTAÇÃO EM BLOQUETE SEXTAVADOS - RUA BOM JARDIM (BAIRRO SANTO ANTÔNIO) - SERRO/MG (ITEM 2) | G111: DATA: | H111: =$H$2 -> OUTUBRO/2023
B112: SERVIÇO: | C112: =VLOOKUP(A110,ORÇAMENTO!$A$10:$I$26,3) -> REGULARIZAÇÃO E COMPACTAÇÃO DE SUBLEITO | E112: SINAPI | F112: =VLOOKUP(A110,ORÇAMENTO!$A$10:$I$26,4) -> 100576 | G112: UNIDADE: | H112: =VLOOKUP(A110,ORÇAMENTO!$A$10:$I$26,5) -> M2
B114: TIPO ITEM | C114: CODIGO ITEM | D114: DESCRIÇÃO ITEM | E114: UNIDADE ITEM | F114: COEFICIENTE | G114: PRECO UNITARIO | H114: CUSTO TOTAL
B115: COMPOSICAO | C115: 5901 | D115: CAMINHÃO PIPA 10.000 L TRUCADO, PESO BRUTO TOTAL 23.000 KG, CARGA ÚTIL MÁXIMA 15.935 KG, DISTÂNCIA ENTRE EIXOS 4,8 M, POTÊNCIA 230 CV, INCLUSIVE TANQUE DE AÇO PARA TRANSPORTE DE ÁGUA | E115: CHP | F115: 0,0010000 | G115: 294,94 | H115: =ROUNDDOWN(F115*G115,2) -> 0.29
B116: COMPOSICAO | C116: 5903 | D116: CAMINHÃO PIPA 10.000 L TRUCADO, PESO BRUTO TOTAL 23.000 KG, CARGA ÚTIL MÁXIMA 15.935 KG, DISTÂNCIA ENTRE EIXOS 4,8 M, POTÊNCIA 230 CV, INCLUSIVE TANQUE DE AÇO PARA TRANSPORTE DE ÁGUA | E116: CHI | F116: 0,0070000 | G116: 72,55 | H116: 0.5
B117: COMPOSICAO | C117: 5932 | D117: MOTONIVELADORA POTÊNCIA BÁSICA LÍQUIDA (PRIMEIRA MARCHA) 125 HP, PESO BRUTO 13032 KG, LARGURA DA LÂMINA DE 3,7 M | E117: CHP | F117: 0,0001000 | G117: 262,71 | H117: 0.02
B118: COMPOSICAO | C118: 5934 | D118: MOTONIVELADORA POTÊNCIA BÁSICA LÍQUIDA (PRIMEIRA MARCHA) 125 HP, PESO BRUTO 13032 KG, LARGURA DA LÂMINA DE 3,7 M | E118: CHI | F118: 0,0080000 | G118: 109,40 | H118: 0.87
B119: COMPOSICAO | C119: 73436 | D119: ROLO COMPACTADOR VIBRATÓRIO PÉ DE CARNEIRO PARA SOLOS, POTÊNCIA 80 HP, PESO OPERACIONAL SEM/COM LASTRO 7,4 / 8,8 T, LARGURA DE TRABALHO 1,68 M | E119: CHP | F119: 0,0020000 | G119: 163,19 | H119: 0.32
B120: COMPOSICAO | C120: 88316 | D120: SERVENTE COM ENCARGOS COMPLEMENTARES | E120: H | F120: 0,0080000 | G120: 19,76 | H120: 0.15
B121: COMPOSICAO | C121: 93244 | D121: ROLO COMPACTADOR VIBRATÓRIO PÉ DE CARNEIRO PARA SOLOS, POTÊNCIA 80 HP, PESO OPERACIONAL SEM/COM LASTRO 7,4 / 8,8 T, LARGURA DE TRABALHO 1,68 M | E121: CHI | F121: 0,0060000 | G121: 71,18 | H121: 0.42
B122: PRODUÇÃO DA EQUIPE | E122: 1 | F122: CUSTO | H122: =SUM(H115:H121) -> 2.57
B123: TOTAL | H123: =H122/E122 -> 2.57 | I123: OK
B124: BDI % | H124: =1+$M$1 -> 1.2149
B125: TOTAL DO SERVIÇO - R$ | H125: =H123*H124 -> 3.122293
A127: 8.5 | B127: CODEVASF | E127: COMPOSIÇÃO DE PREÇO UNITÁRIO | I127: =H143 -> 12.47 | J127: =H145 -> 15.149803
B128: OBRA: | C128: =$C$2 -> PAVIMENTAÇÃO EM BLOQUETE SEXTAVADOS - RUA BOM JARDIM (BAIRRO SANTO ANTÔNIO) - SERRO/MG (ITEM 2) | G128: DATA: | H128: =$H$2 -> OUTUBRO/2023
B129: SERVIÇO: | C129: =VLOOKUP(A127,ORÇAMENTO!$A$10:$I$26,3) -> EXECUÇÃO E COMPACTAÇÃO DE BASE E OU SUB BASE PARA PAVIMENTAÇÃO DE SOLO DE COMPORTAMENTO LATERÍTICO - EXCLUSIVE SOLO, ESCAVAÇÃO, CARGA E TRANSPORTE | E129: SINAPI | F129: =VLOOKUP(A127,ORÇAMENTO!$A$10:$I$26,4) -> 96388 | G129: UNIDADE: | H129: =VLOOKUP(A127,ORÇAMENTO!$A$10:$I$26,5) -> M3
B131: TIPO ITEM | C131: CODIGO ITEM | D131: DESCRIÇÃO ITEM | E131: UNIDADE ITEM | F131: COEFICIENTE | G131: PRECO UNITARIO | H131: CUSTO TOTAL
B132: COMPOSICAO | C132: 5684 | D132: ROLO COMPACTADOR VIBRATÓRIO DE UM CILINDRO AÇO LISO, POTÊNCIA 80 HP, PESO OPERACIONAL MÁXIMO 8,1 T, IMPACTO DINÂMICO 16,15 / 9,5 T, LARGURA DE TRABALHO 1,68 M | E132: CHP | F132: 0,0030000 | G132: 159,98 | H132: =ROUNDDOWN(F132*G132,2) -> 0.47
B133: COMPOSICAO | C133: 5685 | D133: ROLO COMPACTADOR VIBRATÓRIO DE UM CILINDRO AÇO LISO, POTÊNCIA 80 HP, PESO OPERACIONAL MÁXIMO 8,1 T, IMPACTO DINÂMICO 16,15 / 9,5 T, LARGURA DE TRABALHO 1,68 M | E133: CHI | F133: 0,0230000 | G133: 69,53 | H133: 1.59
B134: COMPOSICAO | C134: 5901 | D134: CAMINHÃO PIPA 10.000 L TRUCADO, PESO BRUTO TOTAL 23.000 KG, CARGA ÚTIL MÁXIMA 15.935 KG, DISTÂNCIA ENTRE EIXOS 4,8 M, POTÊNCIA 230 CV, INCLUSIVE TANQUE DE AÇO PARA TRANSPORTE DE ÁGUA | E134: CHP | F134: 0,0040000 | G134: 294,94 | H134: 1.17
B135: COMPOSICAO | C135: 5903 | D135: CAMINHÃO PIPA 10.000 L TRUCADO, PESO BRUTO TOTAL 23.000 KG, CARGA ÚTIL MÁXIMA 15.935 KG, DISTÂNCIA ENTRE EIXOS 4,8 M, POTÊNCIA 230 CV, INCLUSIVE TANQUE DE AÇO PARA TRANSPORTE DE ÁGUA | E135: CHI | F135: 0,0220000 | G135: 72,55 | H135: 1.59
B136: COMPOSICAO | C136: 5932 | D136: MOTONIVELADORA POTÊNCIA BÁSICA LÍQUIDA (PRIMEIRA MARCHA) 125 HP, PESO BRUTO 13032 KG, LARGURA DA LÂMINA DE 3,7 M | E136: CHP | F136: 0,0080000 | G136: 262,71 | H136: 2.1
B137: COMPOSICAO | C137: 5934 | D137: MOTONIVELADORA POTÊNCIA BÁSICA LÍQUIDA (PRIMEIRA MARCHA) 125 HP, PESO BRUTO 13032 KG, LARGURA DA LÂMINA DE 3,7 M | E137: CHI | F137: 0,0190000 | G137: 109,40 | H137: 2.07
B138: COMPOSICAO | C138: 88316 | D138: SERVENTE COM ENCARGOS COMPLEMENTARES | E138: H | F138: 0,0260000 | G138: 19,76 | H138: 0.51
B139: INSUMO | C139: 4743 | D139: CASCALHO DE CAVA (FORNECIMENTO PREFEITURA) | E139: M3 | F139: 1 | H139: 0
B140: COMPOSICAO | C140: 96463 | D140: ROLO COMPACTADOR DE PNEUS, ESTATICO, PRESSAO VARIAVEL, POTENCIA 110 HP, PESO SEM/COM LASTRO 10,8/27 T | E140: CHP | F140: 0,0040000 | G140: 218,21 | H140: 0.87
B141: COMPOSICAO | C141: 96464 | D141: ROLO COMPACTADOR DE PNEUS, ESTATICO, PRESSAO VARIAVEL, POTENCIA 110 HP, PESO SEM/COM LASTRO 10,8/27 T | E141: CHI | F141: 0,0220000 | G141: 95,83 | H141: 2.1
B142: PRODUÇÃO DA EQUIPE | E142: 1 | F142: CUSTO | H142: =SUM(H132:H141) -> 12.47
B143: TOTAL | H143: =H142/E142 -> 12.47 | I143: OK
B144: BDI % | H144: =1+$M$1 -> 1.2149
B145: TOTAL DO SERVIÇO - R$ | H145: =H143*H144 -> 15.149803
A147: 9 | B147: CODEVASF | E147: COMPOSIÇÃO DE PREÇO UNITÁRIO | I147: =H162 -> 61.66 | J147: =H164 -> 74.910734
B148: OBRA: | C148: =$C$2 -> PAVIMENTAÇÃO EM BLOQUETE SEXTAVADOS - RUA BOM JARDIM (BAIRRO SANTO ANTÔNIO) - SERRO/MG (ITEM 2) | G148: DATA: | H148: =$H$2 -> OUTUBRO/2023
B149: SERVIÇO: | C149: =VLOOKUP(A147,ORÇAMENTO!$A$10:$I$26,3) -> EXECUÇÃO DE PAVIMENTO EM PISO INTERTRAVADO, COM BLOCO SEXTAVADO DE CONCRETO DE 25 X 25 CM, ESPESSURA 8 CM | E149: SINAPI | F149: =VLOOKUP(A147,ORÇAMENTO!$A$10:$I$26,4) -> 92394 | G149: UNIDADE: | H149: =VLOOKUP(A147,ORÇAMENTO!$A$10:$I$26,5) -> M2
B151: TIPO ITEM | C151: CODIGO ITEM | D151: DESCRIÇÃO ITEM | E151: UNIDADE ITEM | F151: COEFICIENTE | G151: PRECO UNITARIO | H151: CUSTO TOTAL
B152: INSUMO | C152: 370 | D152: AREIA MEDIA - POSTO JAZIDA/FORNECEDOR (RETIRADO NA JAZIDA, SEM TRANSPORTE) | E152: M3 | F152: 0,0568000 | G152: 90 | H152: =ROUNDDOWN(F152*G152,2) -> 5.11
B153: INSUMO | C153: 712 | D153: BLOQUETE/PISO INTERTRAVADO DE CONCRETO - MODELO SEXTAVADO / HEXAGONAL, 25 CM X 25 CM, E = 8 CM, RESISTENCIA DE 35 MPA (NBR 9781), COR NATURAL | E153: M2 | F153: 1,0038000 | G153: 48.6 | H153: 48.78
B154: INSUMO | C154: 4741 | D154: PO DE PEDRA (POSTO PEDREIRA/FORNECEDOR, SEM FRETE) | E154: M3 | F154: 0,0066000 | G154: 111,12 | H154: 0.73
B155: COMPOSICAO | C155: 88260 | D155: CALCETEIRO COM ENCARGOS COMPLEMENTARES | E155: H | F155: 0,1683000 | G155: 21,06 | H155: 3.54
B156: COMPOSICAO | C156: 88316 | D156: SERVENTE COM ENCARGOS COMPLEMENTARES | E156: H | F156: 0,1683000 | G156: 19,76 | H156: 3.32
B157: COMPOSICAO | C157: 91277 | D157: PLACA VIBRATÓRIA REVERSÍVEL COM MOTOR 4 TEMPOS A GASOLINA, FORÇA CENTRÍFUGA DE 25 KN (2500 KGF), POTÊNCIA 5,5 CV | E157: CHP | F157: 0,0055000 | G157: 8,77 | H157: 0.04
B158: COMPOSICAO | C158: 91278 | D158: PLACA VIBRATÓRIA REVERSÍVEL COM MOTOR 4 TEMPOS A GASOLINA, FORÇA CENTRÍFUGA DE 25 KN (2500 KGF), POTÊNCIA 5,5 CV | E158: CHI | F158: 0,0787000 | G158: 0,52 | H158: 0.04
B159: COMPOSICAO | C159: 91283 | D159: CORTADORA DE PISO COM MOTOR 4 TEMPOS A GASOLINA, POTÊNCIA DE 13 HP, COM DISCO DE CORTE DIAMANTADO SEGMENTADO PARA CONCRETO, DIÂMETRO DE 350 MM, FURO DE 1" (14 X 1") | E159: CHP | F159: 0,0038000 | G159: 9,69 | H159: 0.03
B160: COMPOSICAO | C160: 91285 | D160: CORTADORA DE PISO COM MOTOR 4 TEMPOS A GASOLINA, POTÊNCIA DE 13 HP, COM DISCO DE CORTE DIAMANTADO SEGMENTADO PARA CONCRETO, DIÂMETRO DE 350 MM, FURO DE 1" (14 X 1") | E160: CHI | F160: 0,0804000 | G160: 0,92 | H160: 0.07
B161: PRODUÇÃO DA EQUIPE | E161: 1 | F161: CUSTO | H161: =SUM(H152:H160) -> 61.66
B162: TOTAL | H162: =H161/E161 -> 61.66 | I162: OK
B163: BDI % | H163: =1+$M$1 -> 1.2149
B164: TOTAL DO SERVIÇO - R$ | H164: =H162*H163 -> 74.910734
A166: 10 | B166: CODEVASF | E166: COMPOSIÇÃO DE PREÇO UNITÁRIO | I166: =H175 -> 0.73 | J166: =H177 -> 0.886877
B167: OBRA: | C167: =$C$2 -> PAVIMENTAÇÃO EM BLOQUETE SEXTAVADOS - RUA BOM JARDIM (BAIRRO SANTO ANTÔNIO) - SERRO/MG (ITEM 2) | G167: DATA: | H167: =$H$2 -> OUTUBRO/2023
B168: SERVIÇO: | C168: =VLOOKUP(A166,ORÇAMENTO!$A$10:$I$26,3) -> TRANSPORTE COM CAMINHÃO BASCULANTE, EM VIA URBANA PAVIMENTADA | E168: SINAPI | F168: =VLOOKUP(A166,ORÇAMENTO!$A$10:$I$26,4) -> 95427 | G168: UNIDADE: | H168: =VLOOKUP(A166,ORÇAMENTO!$A$10:$I$26,5) -> M3XKM
B170: TIPO ITEM | C170: CODIGO ITEM | D170: DESCRIÇÃO ITEM | E170: UNIDADE ITEM | F170: COEFICIENTE | G170: PRECO UNITARIO | H170: CUSTO TOTAL
B171: COMPOSICAO | C171: 89883 | D171: CAMINHÃO BASCULANTE 18 M3, COM CAVALO MECÂNICO DE CAPACIDADE MÁXIMA DE TRAÇÃO COMBINADO DE 45000 KG, POTÊNCIA 330 CV, INCLUSIVE SEMIREBOQUE COM CAÇAMBA METÁLICA | E171: CHP | F171: 0,0019000 | G171: 348,45 | H171: =ROUNDDOWN(F171*G171,2) -> 0.66
B172: COMPOSICAO | C172: 89884 | D172: CAMINHÃO BASCULANTE 18 M3, COM CAVALO MECÂNICO DE CAPACIDADE MÁXIMA DE TRAÇÃO COMBINADO DE 45000 KG, POTÊNCIA 330 CV, INCLUSIVE SEMIREBOQUE COM CAÇAMBA METÁLICA | E172: CHI | F172: 0,0008000 | G172: 93,65 | H172: =ROUNDDOWN(F172*G172,2) -> 0.07
H173: =F173*G173 -> 0
B174: PRODUÇÃO DA EQUIPE | E174: 1 | F174: CUSTO | H174: =SUM(H171:H173) -> 0.73
B175: TOTAL | H175: =H174/E174 -> 0.73 | I175: OK
B176: BDI % | H176: =1+$M$1 -> 1.2149
B177: TOTAL DO SERVIÇO - R$ | H177: =H175*H176 -> 0.886877
A179: 11 | B179: CODEVASF | E179: COMPOSIÇÃO DE PREÇO UNITÁRIO | I179: =H188 -> 0.84 | J179: =H190 -> 1.020516
B180: OBRA: | C180: =$C$2 -> PAVIMENTAÇÃO EM BLOQUETE SEXTAVADOS - RUA BOM JARDIM (BAIRRO SANTO ANTÔNIO) - SERRO/MG (ITEM 2) | G180: DATA: | H180: =$H$2 -> OUTUBRO/2023
B181: SERVIÇO: | C181: TRANSPORTE COM CAMINHÃO CARROCERIA 9T, EM VIA URBANA PAVIMENTADA | E181: SINAPI | F181: =VLOOKUP(A179,ORÇAMENTO!$A$10:$I$26,4) -> 100948 | G181: UNIDADE: | H181: =VLOOKUP(A179,ORÇAMENTO!$A$10:$I$26,5) -> TXKM
B183: TIPO ITEM | C183: CODIGO ITEM | D183: DESCRIÇÃO ITEM | E183: UNIDADE ITEM | F183: COEFICIENTE | G183: PRECO UNITARIO | H183: CUSTO TOTAL
B184: COMPOSICAO | C184: 5824 | D184: CAMINHÃO TOCO, PBT 16.000 KG, CARGA ÚTIL MÁX. 10.685 KG, DIST. ENTRE EIXOS 4,8 M, POTÊNCIA 189 CV, INCLUSIVE CARROCERIA FIXA ABERTA DE MADEIRA P/ TRANSPORTE GERAL DE CARGA SECA | E184: CHP | F184: 0,0037000 | G184: 202,74 | H184: =ROUNDDOWN(F184*G184,2) -> 0.75
B185: COMPOSICAO | C185: 5826 | D185: CAMINHÃO TOCO, PBT 16.000 KG, CARGA ÚTIL MÁX. 10.685 KG, DIST. ENTRE EIXOS 4,8 M, POTÊNCIA 189 CV, INCLUSIVE CARROCERIA FIXA ABERTA DE MADEIRA P/ TRANSPORTE GERAL DE CARGA SECA | E185: CHI | F185: 0,0016000 | G185: 60,95 | H185: =ROUNDDOWN(F185*G185,2) -> 0.09
H186: =F186*G186 -> 0
B187: PRODUÇÃO DA EQUIPE | E187: 1 | F187: CUSTO | H187: =SUM(H184:H186) -> 0.84
B188: TOTAL | H188: =H187/E187 -> 0.84 | I188: OK
B189: BDI % | H189: =1+$M$1 -> 1.2149
B190: TOTAL DO SERVIÇO - R$ | H190: =H188*H189 -> 1.020516
A192: 12 | B192: CODEVASF | E192: COMPOSIÇÃO DE PREÇO UNITÁRIO | I192: =H207 -> 773.45 | J192: =H209 -> 939.664405
B193: OBRA: | C193: =$C$2 -> PAVIMENTAÇÃO EM BLOQUETE SEXTAVADOS - RUA BOM JARDIM (BAIRRO SANTO ANTÔNIO) - SERRO/MG (ITEM 2) | G193: DATA: | H193: =$H$2 -> OUTUBRO/2023
B194: SERVIÇO: | C194: =VLOOKUP(A192,ORÇAMENTO!$A$10:$I$26,3) -> EXECUÇÃO DE PASSEIO (CALÇADA) OU PISO DE CONCRETO COM CONCRETO MOLDADO IN LOCO, FEITO EM OBRA, ACABAMENTO CONVENCIONAL, NÃO ARMADO. | E194: SINAPI | F194: =VLOOKUP(A192,ORÇAMENTO!$A$10:$I$26,4) -> 94990 | G194: UNIDADE: | H194: =VLOOKUP(A192,ORÇAMENTO!$A$10:$I$48,5) -> M3
B196: TIPO ITEM | C196: CODIGO ITEM | D196: DESCRIÇÃO ITEM | E196: UNIDADE ITEM | F196: COEFICIENTE | G196: PRECO UNITARIO | H196: CUSTO TOTAL
B197: INSUMO | C197: 2692 | D197: DESMOLDANTE PROTETOR PARA FORMAS DE MADEIRA, DE BASE OLEOSA EMULSIONADA EM AGUA | E197: L | F197: 0,0213000 | G197: 5,92 | H197: =ROUNDDOWN(F197*G197,2) -> 0.12
B198: INSUMO | C198: 4509 | D198: SARRAFO *2,5 X 10* CM EM PINUS, MISTA OU EQUIVALENTE DA REGIAO - BRUTA | E198: M | F198: 3,1250000 | G198: 4,41 | H198: =ROUNDDOWN(F198*G198,2) -> 13.78
B199: INSUMO | C199: 4517 | D199: SARRAFO *2,5 X 7,5* CM EM PINUS, MISTA OU EQUIVALENTE DA REGIAO - BRUTA | E199: M | F199: 2,5000000 | G199: 3,04 | H199: 7.6
B200: INSUMO | C200: 5068 | D200: PREGO DE ACO POLIDO COM CABECA 17 X 21 (2 X 11) | E200: KG | F200: 0,2994000 | G200: 19,23 | H200: 5.75
B201: COMPOSICAO | C201: 88262 | D201: CARPINTEIRO DE FORMAS COM ENCARGOS COMPLEMENTARES | E201: H | F201: 1,6268000 | G201: 27,05 | H201: 44
B202: COMPOSICAO | C202: 88309 | D202: PEDREIRO COM ENCARGOS COMPLEMENTARES | E202: H | F202: 1,4149000 | G202: 27,45 | H202: 38.83
B203: COMPOSICAO | C203: 88316 | D203: SERVENTE COM ENCARGOS COMPLEMENTARES | E203: H | F203: 3,0417000 | G203: 19,76 | H203: 60.1
B204: COMPOSICAO | C204: 94964 | D204: CONCRETO FCK = 20MPA, TRAÇO 1:2,7:3 (EM MASSA SECA DE CIMENTO/ AREIA MÉDIA/ BRITA 1) - PREPARO MECÂNICO COM BETONEIRA 400 L. | E204: M3 | F204: 1,2315000 | G204: 489,87 | H204: 603.27
B206: PRODUÇÃO DA EQUIPE | E206: 1 | F206: CUSTO | H206: =SUM(H197:H205) -> 773.45
B207: TOTAL | H207: =H206/E206 -> 773.45 | I207: OK
B208: BDI % | H208: =1+$M$1 -> 1.2149
B209: TOTAL DO SERVIÇO - R$ | H209: =H207*H208 -> 939.664405
A211: 13 | B211: CODEVASF | E211: COMPOSIÇÃO DE PREÇO UNITÁRIO | I211: =H226 -> 47.75 | J211: =H228 -> 58.011475
B212: OBRA: | C212: =$C$2 -> PAVIMENTAÇÃO EM BLOQUETE SEXTAVADOS - RUA BOM JARDIM (BAIRRO SANTO ANTÔNIO) - SERRO/MG (ITEM 2) | G212: DATA: | H212: =$H$2 -> OUTUBRO/2023
B213: SERVIÇO: | C213: =VLOOKUP(A211,ORÇAMENTO!$A$10:$I$26,3) -> GUIA (MEIO-FIO) E SARJETA CONJUGADOS DE CONCRETO, MOLDADA IN LOCO EM TRECHO RETO COM EXTRUSORA, 45 CM BASE (15 CM BASE DA GUIA + SARJETA (30 X 0,05))X 22 CM ALTURA | E213: SINAPI | F213: =VLOOKUP(A211,ORÇAMENTO!$A$10:$I$26,4) -> 94267 | G213: UNIDADE: | H213: =VLOOKUP(A211,ORÇAMENTO!$A$10:$I$48,5) -> M
B215: TIPO ITEM | C215: CODIGO ITEM | D215: DESCRIÇÃO ITEM | E215: UNIDADE ITEM | F215: COEFICIENTE | G215: PRECO UNITARIO | H215: CUSTO TOTAL
B216: INSUMO | C216: 370 | D216: AREIA MEDIA - POSTO JAZIDA/FORNECEDOR (RETIRADO NA JAZIDA, SEM TRANSPORTE) | E216: M3 | F216: 0,0150000 | G216: 90 | H216: =ROUNDDOWN(F216*G216,2) -> 1.35
B217: INSUMO | C217: 34492a | D217: CONCRETO USINADO BOMBEAVEL, CLASSE DE RESISTENCIA C20, COM BRITA 0 E 1, SLUMP = 100 +/- 20 MM | E217: M3 | F217: =(0.15+0.13)*0.22 /2 + (0.3 *0.05) -> 0.0458 | G217: 550,00 | H217: 25.19
B218: COMPOSICAO | C218: 88243 | D218: AJUDANTE ESPECIALIZADO COM ENCARGOS COMPLEMENTARES | E218: H | F218: 0,1090000 | G218: 21,76 | H218: 2.37
B219: COMPOSICAO | C219: 88309 | D219: PEDREIRO COM ENCARGOS COMPLEMENTARES | E219: H | F219: 0,2440000 | G219: 27,45 | H219: 6.69
B220: COMPOSICAO | C220: 88316 | D220: SERVENTE COM ENCARGOS COMPLEMENTARES | E220: H | F220: 0,4870000 | G220: 19,76 | H220: 9.62
B221: COMPOSICAO | C221: 88631 | D221: ARGAMASSA TRAÇO 1:4 (EM VOLUME DE CIMENTO E AREIA MÉDIA ÚMIDA), PREPARO MANUAL | E221: M3 | F221: 0,0030000 | G221: 575,87 | H221: 1.72
B222: COMPOSICAO | C222: 92960 | D222: MÁQUINA EXTRUSORA DE CONCRETO PARA GUIAS E SARJETAS, MOTOR A DIESEL, POTÊNCIA 14 CV | E222: CHP | F222: 0,0180000 | G222: 18,46 | H222: 0.33
B223: COMPOSICAO | C223: 92961 | D223: MÁQUINA EXTRUSORA DE CONCRETO PARA GUIAS E SARJETAS, MOTOR A DIESEL, POTÊNCIA 14 CV | E223: CHI | F223: 0,0910000 | G223: 5,38 | H223: 0.48
B225: PRODUÇÃO DA EQUIPE | E225: 1 | F225: CUSTO | H225: =SUM(H216:H224) -> 47.75
B226: TOTAL | H226: =H225/E225 -> 47.75 | I226: OK
B227: BDI % | H227: =1+$M$1 -> 1.2149
B228: TOTAL DO SERVIÇO - R$ | H228: =H226*H227 -> 58.011475
A230: 14 | B230: CODEVASF | E230: COMPOSIÇÃO DE PREÇO UNITÁRIO | I230: =H245 -> 35.59 | J230: =H247 -> 43.238291
... 337 more rows

Sheet BDI SERV
B1: DETALHAMENTO DO BDI - SERVIÇOS
B4: Item | C4: Descrição dos Serviços | D4: % | E4: %
D5: PV | E5: CD
B7: 1 | C7: ADMINISTRAÇÃO CENTRAL | E7: 4.01
B8: 1.1 | C8: ESCRITÓRIO CENTRAL
B9: 1.2 | C9: VIAGENS
B10: 1.3 | C10: OUTROS
B12: 2 | C12: IMPOSTOS E TAXAS | D12: =SUM(D13:D15) -> 5.65 | E12: =SUM(E13:E15) -> 7.06
B13: 2.1 | C13: ISS (*) | D13: =4*0.5 -> 2 | E13: =ROUND(D13*1.2515,2) -> 2.5
B14: 2.2 | C14: PIS | D14: 0.65 | E14: =ROUND(D14*1.2515,2) -> 0.81
B15: 2.3 | C15: Cofins | D15: 3 | E15: =ROUND(D15*1.2515,2) -> 3.75
B17: 3 | C17: TAXA DE RISCO | E17: =SUM(E18:E21) -> 0.96
B18: 3.1 | C18: SEGURO | E18: 0.2
B19: 3.2 | C19: RISCO | E19: 0.56
B20: 3.3 | C20: GARANTIA | E20: 0.2
B22: 4 | C22: DESPESAS FINANCEIRAS | E22: 1.11
B24: 5 | C24: LUCRO | E24: 8
C26: BDI - CALCULADO | E26: =ROUND((((1+(E7+E17)/100)*(1+E22/100)*(1+E24/100)/(1-D12/100)-1)*100),2) -> 21.49
A28: BDI = ((1+((AC+S+R+G)/100))x(1+DF/100)x(1+L/100)/(1-I/100)-1)*100
B30: BDI (CALCULADO): | D30: =ROUND((((1+((E7+E17)/100))*(1+E22/100)*(1+E24/100))/(1-D12/100)-1)*100,2) -> 21.49 | E30: %
A32: (*) ISS CONFORME LEI COMPLEMENTAR Nº 63/2005 - ART. 30 (QUANT. ESTIMADA DE MATERIAIS = 50%)
A36: BDI EM CONFORMIDADE COM OS ACÓRDÃOS Nº 2369/2011 e ACÓRDÃO Nº 2.622/2013 - TCU - PLENÁRIO

Sheet CRONOGRAMA
B1: CRONOGRAMA FÍSICO-FINANCEIRO
B2: OBRA: | C2: =ORÇAMENTO!C5 -> PAVIMENTAÇÃO EM BLOQUETE SEXTAVADOS - RUA BOM JARDIM (BAIRRO SANTO ANTÔNIO) - SERRO/MG (ITEM 2) | F2: VALOR: | G2: =ORÇAMENTO!I47 -> 1971942.77
F3: PRAZO: | G3: 150 DIAS
B5: ITEM | C5: ETAPAS/DESCRIÇAO | D5: FISICO/ FINANCEIRO | E5: TOTAL ETAPAS | F5: MÊS 1 | G5: MÊS 2 | H5: MÊS 3 | I5: MÊS 4 | J5: MÊS 5 | K5: TOTAL
A6: A | B6: =VLOOKUP(A6,ORÇAMENTO!$A$9:$I$47,2) -> 1 | C6: =VLOOKUP(A6,ORÇAMENTO!$A$9:$I$47,3) -> SERVIÇOS PRELIMINARES | D6: FISICO | E6: =ROUND(E7/$G$2,4) -> 0.078 | F6: 0.2 | G6: 0.2 | H6: 0.2 | I6: 0.2 | J6: 0.2 | K6: =SUM(F6:J6) -> 1
D7: FINANCEIRO | E7: =ORÇAMENTO!I9 -> 153884.53 | F7: =ROUND($E$7*F6,2) -> 30776.91 | G7: =ROUND($E$7*G6,2) -> 30776.91 | H7: =ROUND($E$7*H6,2) -> 30776.91 | I7: =ROUND($E$7*I6,2) -> 30776.91 | J7: 30776.91 | K7: =SUM(F7:J7) -> 153884.55
A8: B | B8: =VLOOKUP(A8,ORÇAMENTO!$A$9:$I$47,2) -> 2 | C8: =VLOOKUP(A8,ORÇAMENTO!$A$9:$I$47,3) -> PAVIMENTAÇÃO | D8: FISICO | E8: =ROUND(E9/$G$2,4) -> 0.3137 | F8: 0.2 | G8: 0.2 | H8: 0.2 | I8: 0.2 | J8: 0.2 | K8: =SUM(F8:J8) -> 1
D9: FINANCEIRO | E9: =ORÇAMENTO!I15 -> 618619.8 | F9: =ROUND($E$9*F8,2) -> 123723.96 | G9: =ROUND($E$9*G8,2) -> 123723.96 | H9: =ROUND($E$9*H8,2) -> 123723.96 | I9: =ROUND($E$9*I8,2) -> 123723.96 | J9: 123723.96 | K9: =SUM(F9:J9) -> 618619.8
A10: C | B10: =VLOOKUP(A10,ORÇAMENTO!$A$9:$I$47,2) -> 3 | C10: =VLOOKUP(A10,ORÇAMENTO!$A$9:$I$47,3) -> TRANSPORTE DE MATERIAIS | D10: FISICO | E10: =ROUND(E11/$G$2,4) -> 0.0841 | F10: 0.2 | G10: 0.2 | H10: 0.2 | I10: 0.2 | J10: 0.2 | K10: =SUM(F10:J10) -> 1
D11: FINANCEIRO | E11: =ORÇAMENTO!I21 -> 165785.26 | F11: =ROUND($E$11*F10,2) -> 33157.05 | G11: =ROUND($E$11*G10,2) -> 33157.05 | H11: =ROUND($E$11*H10,2) -> 33157.05 | I11: =ROUND($E$11*I10,2) -> 33157.05 | J11: 33157.05 | K11: =SUM(F11:J11) -> 165785.25
A12: D | B12: =VLOOKUP(A12,ORÇAMENTO!$A$9:$I$47,2) -> 4 | C12: =VLOOKUP(A12,ORÇAMENTO!$A$9:$I$47,3) -> DRENAGEM E OBRAS COMPLEMENTARES | D12: FISICO | E12: =ROUND(E13/$G$2,4) -> 0.5242 | F12: 0.2 | G12: 0.2 | H12: 0.2 | I12: 0.2 | J12: 0.2 | K12: =SUM(F12:J12) -> 1
D13: FINANCEIRO | E13: =ORÇAMENTO!I24 -> 1033653.18 | F13: =ROUND($E$13*F12,2) -> 206730.64 | G13: =ROUND($E$13*G12,2) -> 206730.64 | H13: =ROUND($E$13*H12,2) -> 206730.64 | I13: =ROUND($E$13*I12,2) -> 206730.64 | J13: 206730.64 | K13: =SUM(F13:J13) -> 1033653.2
B14: TOTAL | D14: FISICO | E14: =SUM(F14:H14) -> 0.6000000091 | F14: =F15/E15 -> 0.200000003 | G14: =G15/$E$15 -> 0.200000003 | H14: =H15/$E$15 -> 0.200000003 | I14: =I15/$E$15 -> 0.200000003 | J14: 0.200000003 | K14: =SUM(F14:J14) -> 1.000000015
D15: FINANCEIRO | E15: =E11+E9+E7+E13 -> 1971942.77 | F15: =F11+F9+F7+F13 -> 394388.56 | G15: =G11+G9+G7+G13 -> 394388.56 | H15: =H11+H9+H7+H13 -> 394388.56 | I15: =I11+I9+I7+I13 -> 394388.56 | J15: 394388.56 | K15: =ROUNDUP(SUM(F15:J15),2)-0.03 -> 1971942.77
B17: OBSERVAÇÕES:
